{"text_format":"1","workbook":"xlsx","n_sheets":4,"sheets":["Распределение","Остаток","Отгрузка","Region"],"not_rendered":{"charts":0,"images":1,"macros":1,"external_links":0,"defined_names":1,"comments":1,"pivot_tables":0},"unopened":[],"bounds":{"document_bytes":16777216,"sheet_cells":100000,"rows_first":2000,"rows_last":500,"rows_between":2000,"halvings":0,"cell_chars":16384,"cell_head_chars":4096},"cells_cut":0,"cells_raw":0,"read":"whole","date_system":"1900"}

{"sheet":"Распределение","index":0,"n_rows":100,"n_cols":45,"rows_kept":100,"cut":false,"hidden":false,"merged":[[0,0,0,1],[0,2,0,4]]}
[null,null,"ДнепроДз",null,null,null,null,null,null,null,null,null,{"$f":"COUNT($A$15:$A$100)","v":8},null,3,{"$f":"ROW(10:10)","v":10},null,{"$f":"ROW(14:14)","v":14}]
["КОД","НАИМЕНОВАНИЕ","Январь","Февраль","Март","Апрель","Май","Июнь","Июль","Август","Сентябрь","Октябрь","Ноябрь","Декабрь","ВСЕГО","Среднее","Основной Склад","Карантин",{"$f":"CONCATENATE(\"ОСТАТОК\",\", \",$C$1)","v":"ОСТАТОК, ДнепроДз"},"ПРИХОД","ВЫДЕЛИТЬ"]
[null,null,{"$f":"IF(SUMIFS(Отгрузка!$P:$P,Отгрузка!$B:$B,$C$1,Отгрузка!$N:$N,$A3)=0,\"\",SUMIFS(Отгрузка!$P:$P,Отгрузка!$B:$B,$C$1,Отгрузка!$N:$N,$A3))","v":""},{"$f":"IF(SUMIFS(Отгрузка!$P:$P,Отгрузка!$B:$B,$C$1,Отгрузка!$N:$N,$A3)=0,\"\",SUMIFS(Отгрузка!$P:$P,Отгрузка!$B:$B,$C$1,Отгрузка!$N:$N,$A3))","v":""},{"$f":"IF(SUMIFS(Отгрузка!$P:$P,Отгрузка!$B:$B,$C$1,Отгрузка!$N:$N,$A3)=0,\"\",SUMIFS(Отгрузка!$P:$P,Отгрузка!$B:$B,$C$1,Отгрузка!$N:$N,$A3))","v":""},{"$f":"IF(SUMIFS(Отгрузка!$P:$P,Отгрузка!$B:$B,$C$1,Отгрузка!$N:$N,$A3)=0,\"\",SUMIFS(Отгрузка!$P:$P,Отгрузка!$B:$B,$C$1,Отгрузка!$N:$N,$A3))","v":""},{"$f":"IF(SUMIFS(Отгрузка!$P:$P,Отгрузка!$B:$B,$C$1,Отгрузка!$N:$N,$A3)=0,\"\",SUMIFS(Отгрузка!$P:$P,Отгрузка!$B:$B,$C$1,Отгрузка!$N:$N,$A3))","v":""},{"$f":"IF(SUMIFS(Отгрузка!$P:$P,Отгрузка!$B:$B,$C$1,Отгрузка!$N:$N,$A3)=0,\"\",SUMIFS(Отгрузка!$P:$P,Отгрузка!$B:$B,$C$1,Отгрузка!$N:$N,$A3))","v":""},{"$f":"IF(SUMIFS(Отгрузка!$P:$P,Отгрузка!$B:$B,$C$1,Отгрузка!$N:$N,$A3)=0,\"\",SUMIFS(Отгрузка!$P:$P,Отгрузка!$B:$B,$C$1,Отгрузка!$N:$N,$A3))","v":""},{"$f":"IF(SUMIFS(Отгрузка!$P:$P,Отгрузка!$B:$B,$C$1,Отгрузка!$N:$N,$A3)=0,\"\",SUMIFS(Отгрузка!$P:$P,Отгрузка!$B:$B,$C$1,Отгрузка!$N:$N,$A3))","v":""},{"$f":"IF(SUMIFS(Отгрузка!$P:$P,Отгрузка!$B:$B,$C$1,Отгрузка!$N:$N,$A3)=0,\"\",SUMIFS(Отгрузка!$P:$P,Отгрузка!$B:$B,$C$1,Отгрузка!$N:$N,$A3))","v":""},{"$f":"IF(SUMIFS(Отгрузка!$P:$P,Отгрузка!$B:$B,$C$1,Отгрузка!$N:$N,$A3)=0,\"\",SUMIFS(Отгрузка!$P:$P,Отгрузка!$B:$B,$C$1,Отгрузка!$N:$N,$A3))","v":""},{"$f":"IF(SUMIFS(Отгрузка!$P:$P,Отгрузка!$B:$B,$C$1,Отгрузка!$N:$N,$A3)=0,\"\",SUMIFS(Отгрузка!$P:$P,Отгрузка!$B:$B,$C$1,Отгрузка!$N:$N,$A3))","v":""},{"$f":"IF(SUMIFS(Отгрузка!$P:$P,Отгрузка!$B:$B,$C$1,Отгрузка!$N:$N,$A3)=0,\"\",SUMIFS(Отгрузка!$P:$P,Отгрузка!$B:$B,$C$1,Отгрузка!$N:$N,$A3)*2)","v":""},{"$f":"SUM(C3:N3)","v":0},{"$f":"O3/3","v":0},null,null,{"$f":"IFERROR(HLOOKUP($C$1,Остаток!$A$1:$AS$7,MATCH($A3,Остаток!$A$1:$A$7,0),0),\"\")","v":""},null,null,null,null,null,{"$f":"IF(T3-C15=0,\"\",T3-C15)","v":""}]
[null,null,{"$f":"IF(SUMIFS(Отгрузка!$P:$P,Отгрузка!$B:$B,$C$1,Отгрузка!$N:$N,$A4)=0,\"\",SUMIFS(Отгрузка!$P:$P,Отгрузка!$B:$B,$C$1,Отгрузка!$N:$N,$A4))","v":""},{"$f":"IF(SUMIFS(Отгрузка!$P:$P,Отгрузка!$B:$B,$C$1,Отгрузка!$N:$N,$A4)=0,\"\",SUMIFS(Отгрузка!$P:$P,Отгрузка!$B:$B,$C$1,Отгрузка!$N:$N,$A4))","v":""},{"$f":"IF(SUMIFS(Отгрузка!$P:$P,Отгрузка!$B:$B,$C$1,Отгрузка!$N:$N,$A4)=0,\"\",SUMIFS(Отгрузка!$P:$P,Отгрузка!$B:$B,$C$1,Отгрузка!$N:$N,$A4))","v":""},{"$f":"IF(SUMIFS(Отгрузка!$P:$P,Отгрузка!$B:$B,$C$1,Отгрузка!$N:$N,$A4)=0,\"\",SUMIFS(Отгрузка!$P:$P,Отгрузка!$B:$B,$C$1,Отгрузка!$N:$N,$A4))","v":""},{"$f":"IF(SUMIFS(Отгрузка!$P:$P,Отгрузка!$B:$B,$C$1,Отгрузка!$N:$N,$A4)=0,\"\",SUMIFS(Отгрузка!$P:$P,Отгрузка!$B:$B,$C$1,Отгрузка!$N:$N,$A4))","v":""},{"$f":"IF(SUMIFS(Отгрузка!$P:$P,Отгрузка!$B:$B,$C$1,Отгрузка!$N:$N,$A4)=0,\"\",SUMIFS(Отгрузка!$P:$P,Отгрузка!$B:$B,$C$1,Отгрузка!$N:$N,$A4))","v":""},{"$f":"IF(SUMIFS(Отгрузка!$P:$P,Отгрузка!$B:$B,$C$1,Отгрузка!$N:$N,$A4)=0,\"\",SUMIFS(Отгрузка!$P:$P,Отгрузка!$B:$B,$C$1,Отгрузка!$N:$N,$A4))","v":""},{"$f":"IF(SUMIFS(Отгрузка!$P:$P,Отгрузка!$B:$B,$C$1,Отгрузка!$N:$N,$A4)=0,\"\",SUMIFS(Отгрузка!$P:$P,Отгрузка!$B:$B,$C$1,Отгрузка!$N:$N,$A4))","v":""},{"$f":"IF(SUMIFS(Отгрузка!$P:$P,Отгрузка!$B:$B,$C$1,Отгрузка!$N:$N,$A4)=0,\"\",SUMIFS(Отгрузка!$P:$P,Отгрузка!$B:$B,$C$1,Отгрузка!$N:$N,$A4))","v":""},{"$f":"IF(SUMIFS(Отгрузка!$P:$P,Отгрузка!$B:$B,$C$1,Отгрузка!$N:$N,$A4)=0,\"\",SUMIFS(Отгрузка!$P:$P,Отгрузка!$B:$B,$C$1,Отгрузка!$N:$N,$A4))","v":""},{"$f":"IF(SUMIFS(Отгрузка!$P:$P,Отгрузка!$B:$B,$C$1,Отгрузка!$N:$N,$A4)=0,\"\",SUMIFS(Отгрузка!$P:$P,Отгрузка!$B:$B,$C$1,Отгрузка!$N:$N,$A4))","v":""},{"$f":"IF(SUMIFS(Отгрузка!$P:$P,Отгрузка!$B:$B,$C$1,Отгрузка!$N:$N,$A4)=0,\"\",SUMIFS(Отгрузка!$P:$P,Отгрузка!$B:$B,$C$1,Отгрузка!$N:$N,$A4)*2)","v":""},0,{"$f":"O4/3","v":0},null,null,{"$f":"IFERROR(HLOOKUP($C$1,Остаток!$A$1:$AS$7,MATCH($A4,Остаток!$A$1:$A$7,0),0),\"\")","v":""},null,2,null,null,null,""]
[null,null,{"$f":"IF(SUMIFS(Отгрузка!$P:$P,Отгрузка!$B:$B,$C$1,Отгрузка!$N:$N,$A5)=0,\"\",SUMIFS(Отгрузка!$P:$P,Отгрузка!$B:$B,$C$1,Отгрузка!$N:$N,$A5))","v":""},{"$f":"IF(SUMIFS(Отгрузка!$P:$P,Отгрузка!$B:$B,$C$1,Отгрузка!$N:$N,$A5)=0,\"\",SUMIFS(Отгрузка!$P:$P,Отгрузка!$B:$B,$C$1,Отгрузка!$N:$N,$A5))","v":""},{"$f":"IF(SUMIFS(Отгрузка!$P:$P,Отгрузка!$B:$B,$C$1,Отгрузка!$N:$N,$A5)=0,\"\",SUMIFS(Отгрузка!$P:$P,Отгрузка!$B:$B,$C$1,Отгрузка!$N:$N,$A5))","v":""},{"$f":"IF(SUMIFS(Отгрузка!$P:$P,Отгрузка!$B:$B,$C$1,Отгрузка!$N:$N,$A5)=0,\"\",SUMIFS(Отгрузка!$P:$P,Отгрузка!$B:$B,$C$1,Отгрузка!$N:$N,$A5))","v":""},{"$f":"IF(SUMIFS(Отгрузка!$P:$P,Отгрузка!$B:$B,$C$1,Отгрузка!$N:$N,$A5)=0,\"\",SUMIFS(Отгрузка!$P:$P,Отгрузка!$B:$B,$C$1,Отгрузка!$N:$N,$A5))","v":""},{"$f":"IF(SUMIFS(Отгрузка!$P:$P,Отгрузка!$B:$B,$C$1,Отгрузка!$N:$N,$A5)=0,\"\",SUMIFS(Отгрузка!$P:$P,Отгрузка!$B:$B,$C$1,Отгрузка!$N:$N,$A5))","v":""},{"$f":"IF(SUMIFS(Отгрузка!$P:$P,Отгрузка!$B:$B,$C$1,Отгрузка!$N:$N,$A5)=0,\"\",SUMIFS(Отгрузка!$P:$P,Отгрузка!$B:$B,$C$1,Отгрузка!$N:$N,$A5))","v":""},{"$f":"IF(SUMIFS(Отгрузка!$P:$P,Отгрузка!$B:$B,$C$1,Отгрузка!$N:$N,$A5)=0,\"\",SUMIFS(Отгрузка!$P:$P,Отгрузка!$B:$B,$C$1,Отгрузка!$N:$N,$A5))","v":""},{"$f":"IF(SUMIFS(Отгрузка!$P:$P,Отгрузка!$B:$B,$C$1,Отгрузка!$N:$N,$A5)=0,\"\",SUMIFS(Отгрузка!$P:$P,Отгрузка!$B:$B,$C$1,Отгрузка!$N:$N,$A5))","v":""},{"$f":"IF(SUMIFS(Отгрузка!$P:$P,Отгрузка!$B:$B,$C$1,Отгрузка!$N:$N,$A5)=0,\"\",SUMIFS(Отгрузка!$P:$P,Отгрузка!$B:$B,$C$1,Отгрузка!$N:$N,$A5))","v":""},{"$f":"IF(SUMIFS(Отгрузка!$P:$P,Отгрузка!$B:$B,$C$1,Отгрузка!$N:$N,$A5)=0,\"\",SUMIFS(Отгрузка!$P:$P,Отгрузка!$B:$B,$C$1,Отгрузка!$N:$N,$A5))","v":""},{"$f":"IF(SUMIFS(Отгрузка!$P:$P,Отгрузка!$B:$B,$C$1,Отгрузка!$N:$N,$A5)=0,\"\",SUMIFS(Отгрузка!$P:$P,Отгрузка!$B:$B,$C$1,Отгрузка!$N:$N,$A5)*2)","v":""},0,0,null,null,{"$f":"IFERROR(HLOOKUP($C$1,Остаток!$A$1:$AS$7,MATCH($A5,Остаток!$A$1:$A$7,0),0),\"\")","v":""},null,null,null,null,null,""]
[null,null,{"$f":"IF(SUMIFS(Отгрузка!$P:$P,Отгрузка!$B:$B,$C$1,Отгрузка!$N:$N,$A6)=0,\"\",SUMIFS(Отгрузка!$P:$P,Отгрузка!$B:$B,$C$1,Отгрузка!$N:$N,$A6))","v":""},{"$f":"IF(SUMIFS(Отгрузка!$P:$P,Отгрузка!$B:$B,$C$1,Отгрузка!$N:$N,$A6)=0,\"\",SUMIFS(Отгрузка!$P:$P,Отгрузка!$B:$B,$C$1,Отгрузка!$N:$N,$A6))","v":""},{"$f":"IF(SUMIFS(Отгрузка!$P:$P,Отгрузка!$B:$B,$C$1,Отгрузка!$N:$N,$A6)=0,\"\",SUMIFS(Отгрузка!$P:$P,Отгрузка!$B:$B,$C$1,Отгрузка!$N:$N,$A6))","v":""},{"$f":"IF(SUMIFS(Отгрузка!$P:$P,Отгрузка!$B:$B,$C$1,Отгрузка!$N:$N,$A6)=0,\"\",SUMIFS(Отгрузка!$P:$P,Отгрузка!$B:$B,$C$1,Отгрузка!$N:$N,$A6))","v":""},{"$f":"IF(SUMIFS(Отгрузка!$P:$P,Отгрузка!$B:$B,$C$1,Отгрузка!$N:$N,$A6)=0,\"\",SUMIFS(Отгрузка!$P:$P,Отгрузка!$B:$B,$C$1,Отгрузка!$N:$N,$A6))","v":""},{"$f":"IF(SUMIFS(Отгрузка!$P:$P,Отгрузка!$B:$B,$C$1,Отгрузка!$N:$N,$A6)=0,\"\",SUMIFS(Отгрузка!$P:$P,Отгрузка!$B:$B,$C$1,Отгрузка!$N:$N,$A6))","v":""},{"$f":"IF(SUMIFS(Отгрузка!$P:$P,Отгрузка!$B:$B,$C$1,Отгрузка!$N:$N,$A6)=0,\"\",SUMIFS(Отгрузка!$P:$P,Отгрузка!$B:$B,$C$1,Отгрузка!$N:$N,$A6))","v":""},{"$f":"IF(SUMIFS(Отгрузка!$P:$P,Отгрузка!$B:$B,$C$1,Отгрузка!$N:$N,$A6)=0,\"\",SUMIFS(Отгрузка!$P:$P,Отгрузка!$B:$B,$C$1,Отгрузка!$N:$N,$A6))","v":""},{"$f":"IF(SUMIFS(Отгрузка!$P:$P,Отгрузка!$B:$B,$C$1,Отгрузка!$N:$N,$A6)=0,\"\",SUMIFS(Отгрузка!$P:$P,Отгрузка!$B:$B,$C$1,Отгрузка!$N:$N,$A6))","v":""},{"$f":"IF(SUMIFS(Отгрузка!$P:$P,Отгрузка!$B:$B,$C$1,Отгрузка!$N:$N,$A6)=0,\"\",SUMIFS(Отгрузка!$P:$P,Отгрузка!$B:$B,$C$1,Отгрузка!$N:$N,$A6))","v":""},{"$f":"IF(SUMIFS(Отгрузка!$P:$P,Отгрузка!$B:$B,$C$1,Отгрузка!$N:$N,$A6)=0,\"\",SUMIFS(Отгрузка!$P:$P,Отгрузка!$B:$B,$C$1,Отгрузка!$N:$N,$A6))","v":""},{"$f":"IF(SUMIFS(Отгрузка!$P:$P,Отгрузка!$B:$B,$C$1,Отгрузка!$N:$N,$A6)=0,\"\",SUMIFS(Отгрузка!$P:$P,Отгрузка!$B:$B,$C$1,Отгрузка!$N:$N,$A6)*2)","v":""},0,0,null,null,{"$f":"IFERROR(HLOOKUP($C$1,Остаток!$A$1:$AS$7,MATCH($A6,Остаток!$A$1:$A$7,0),0),\"\")","v":""},null,null,null,null,null,""]
[null,null,{"$f":"IF(SUMIFS(Отгрузка!$P:$P,Отгрузка!$B:$B,$C$1,Отгрузка!$N:$N,$A7)=0,\"\",SUMIFS(Отгрузка!$P:$P,Отгрузка!$B:$B,$C$1,Отгрузка!$N:$N,$A7))","v":""},{"$f":"IF(SUMIFS(Отгрузка!$P:$P,Отгрузка!$B:$B,$C$1,Отгрузка!$N:$N,$A7)=0,\"\",SUMIFS(Отгрузка!$P:$P,Отгрузка!$B:$B,$C$1,Отгрузка!$N:$N,$A7))","v":""},{"$f":"IF(SUMIFS(Отгрузка!$P:$P,Отгрузка!$B:$B,$C$1,Отгрузка!$N:$N,$A7)=0,\"\",SUMIFS(Отгрузка!$P:$P,Отгрузка!$B:$B,$C$1,Отгрузка!$N:$N,$A7))","v":""},{"$f":"IF(SUMIFS(Отгрузка!$P:$P,Отгрузка!$B:$B,$C$1,Отгрузка!$N:$N,$A7)=0,\"\",SUMIFS(Отгрузка!$P:$P,Отгрузка!$B:$B,$C$1,Отгрузка!$N:$N,$A7))","v":""},{"$f":"IF(SUMIFS(Отгрузка!$P:$P,Отгрузка!$B:$B,$C$1,Отгрузка!$N:$N,$A7)=0,\"\",SUMIFS(Отгрузка!$P:$P,Отгрузка!$B:$B,$C$1,Отгрузка!$N:$N,$A7))","v":""},{"$f":"IF(SUMIFS(Отгрузка!$P:$P,Отгрузка!$B:$B,$C$1,Отгрузка!$N:$N,$A7)=0,\"\",SUMIFS(Отгрузка!$P:$P,Отгрузка!$B:$B,$C$1,Отгрузка!$N:$N,$A7))","v":""},{"$f":"IF(SUMIFS(Отгрузка!$P:$P,Отгрузка!$B:$B,$C$1,Отгрузка!$N:$N,$A7)=0,\"\",SUMIFS(Отгрузка!$P:$P,Отгрузка!$B:$B,$C$1,Отгрузка!$N:$N,$A7))","v":""},{"$f":"IF(SUMIFS(Отгрузка!$P:$P,Отгрузка!$B:$B,$C$1,Отгрузка!$N:$N,$A7)=0,\"\",SUMIFS(Отгрузка!$P:$P,Отгрузка!$B:$B,$C$1,Отгрузка!$N:$N,$A7))","v":""},{"$f":"IF(SUMIFS(Отгрузка!$P:$P,Отгрузка!$B:$B,$C$1,Отгрузка!$N:$N,$A7)=0,\"\",SUMIFS(Отгрузка!$P:$P,Отгрузка!$B:$B,$C$1,Отгрузка!$N:$N,$A7))","v":""},{"$f":"IF(SUMIFS(Отгрузка!$P:$P,Отгрузка!$B:$B,$C$1,Отгрузка!$N:$N,$A7)=0,\"\",SUMIFS(Отгрузка!$P:$P,Отгрузка!$B:$B,$C$1,Отгрузка!$N:$N,$A7))","v":""},{"$f":"IF(SUMIFS(Отгрузка!$P:$P,Отгрузка!$B:$B,$C$1,Отгрузка!$N:$N,$A7)=0,\"\",SUMIFS(Отгрузка!$P:$P,Отгрузка!$B:$B,$C$1,Отгрузка!$N:$N,$A7))","v":""},{"$f":"IF(SUMIFS(Отгрузка!$P:$P,Отгрузка!$B:$B,$C$1,Отгрузка!$N:$N,$A7)=0,\"\",SUMIFS(Отгрузка!$P:$P,Отгрузка!$B:$B,$C$1,Отгрузка!$N:$N,$A7)*2)","v":""},0,0,null,null,{"$f":"IFERROR(HLOOKUP($C$1,Остаток!$A$1:$AS$7,MATCH($A7,Остаток!$A$1:$A$7,0),0),\"\")","v":""},null,2,null,null,null,""]
[null,null,{"$f":"IF(SUMIFS(Отгрузка!$P:$P,Отгрузка!$B:$B,$C$1,Отгрузка!$N:$N,$A8)=0,\"\",SUMIFS(Отгрузка!$P:$P,Отгрузка!$B:$B,$C$1,Отгрузка!$N:$N,$A8))","v":""},{"$f":"IF(SUMIFS(Отгрузка!$P:$P,Отгрузка!$B:$B,$C$1,Отгрузка!$N:$N,$A8)=0,\"\",SUMIFS(Отгрузка!$P:$P,Отгрузка!$B:$B,$C$1,Отгрузка!$N:$N,$A8))","v":""},{"$f":"IF(SUMIFS(Отгрузка!$P:$P,Отгрузка!$B:$B,$C$1,Отгрузка!$N:$N,$A8)=0,\"\",SUMIFS(Отгрузка!$P:$P,Отгрузка!$B:$B,$C$1,Отгрузка!$N:$N,$A8))","v":""},{"$f":"IF(SUMIFS(Отгрузка!$P:$P,Отгрузка!$B:$B,$C$1,Отгрузка!$N:$N,$A8)=0,\"\",SUMIFS(Отгрузка!$P:$P,Отгрузка!$B:$B,$C$1,Отгрузка!$N:$N,$A8))","v":""},{"$f":"IF(SUMIFS(Отгрузка!$P:$P,Отгрузка!$B:$B,$C$1,Отгрузка!$N:$N,$A8)=0,\"\",SUMIFS(Отгрузка!$P:$P,Отгрузка!$B:$B,$C$1,Отгрузка!$N:$N,$A8))","v":""},{"$f":"IF(SUMIFS(Отгрузка!$P:$P,Отгрузка!$B:$B,$C$1,Отгрузка!$N:$N,$A8)=0,\"\",SUMIFS(Отгрузка!$P:$P,Отгрузка!$B:$B,$C$1,Отгрузка!$N:$N,$A8))","v":""},{"$f":"IF(SUMIFS(Отгрузка!$P:$P,Отгрузка!$B:$B,$C$1,Отгрузка!$N:$N,$A8)=0,\"\",SUMIFS(Отгрузка!$P:$P,Отгрузка!$B:$B,$C$1,Отгрузка!$N:$N,$A8))","v":""},{"$f":"IF(SUMIFS(Отгрузка!$P:$P,Отгрузка!$B:$B,$C$1,Отгрузка!$N:$N,$A8)=0,\"\",SUMIFS(Отгрузка!$P:$P,Отгрузка!$B:$B,$C$1,Отгрузка!$N:$N,$A8))","v":""},{"$f":"IF(SUMIFS(Отгрузка!$P:$P,Отгрузка!$B:$B,$C$1,Отгрузка!$N:$N,$A8)=0,\"\",SUMIFS(Отгрузка!$P:$P,Отгрузка!$B:$B,$C$1,Отгрузка!$N:$N,$A8))","v":""},{"$f":"IF(SUMIFS(Отгрузка!$P:$P,Отгрузка!$B:$B,$C$1,Отгрузка!$N:$N,$A8)=0,\"\",SUMIFS(Отгрузка!$P:$P,Отгрузка!$B:$B,$C$1,Отгрузка!$N:$N,$A8))","v":""},{"$f":"IF(SUMIFS(Отгрузка!$P:$P,Отгрузка!$B:$B,$C$1,Отгрузка!$N:$N,$A8)=0,\"\",SUMIFS(Отгрузка!$P:$P,Отгрузка!$B:$B,$C$1,Отгрузка!$N:$N,$A8))","v":""},{"$f":"IF(SUMIFS(Отгрузка!$P:$P,Отгрузка!$B:$B,$C$1,Отгрузка!$N:$N,$A8)=0,\"\",SUMIFS(Отгрузка!$P:$P,Отгрузка!$B:$B,$C$1,Отгрузка!$N:$N,$A8)*2)","v":""},0,0,null,null,{"$f":"IFERROR(HLOOKUP($C$1,Остаток!$A$1:$AS$7,MATCH($A8,Остаток!$A$1:$A$7,0),0),\"\")","v":""},null,null,null,null,null,""]
[null,null,{"$f":"IF(SUMIFS(Отгрузка!$P:$P,Отгрузка!$B:$B,$C$1,Отгрузка!$N:$N,$A9)=0,\"\",SUMIFS(Отгрузка!$P:$P,Отгрузка!$B:$B,$C$1,Отгрузка!$N:$N,$A9))","v":""},{"$f":"IF(SUMIFS(Отгрузка!$P:$P,Отгрузка!$B:$B,$C$1,Отгрузка!$N:$N,$A9)=0,\"\",SUMIFS(Отгрузка!$P:$P,Отгрузка!$B:$B,$C$1,Отгрузка!$N:$N,$A9))","v":""},{"$f":"IF(SUMIFS(Отгрузка!$P:$P,Отгрузка!$B:$B,$C$1,Отгрузка!$N:$N,$A9)=0,\"\",SUMIFS(Отгрузка!$P:$P,Отгрузка!$B:$B,$C$1,Отгрузка!$N:$N,$A9))","v":""},{"$f":"IF(SUMIFS(Отгрузка!$P:$P,Отгрузка!$B:$B,$C$1,Отгрузка!$N:$N,$A9)=0,\"\",SUMIFS(Отгрузка!$P:$P,Отгрузка!$B:$B,$C$1,Отгрузка!$N:$N,$A9))","v":""},{"$f":"IF(SUMIFS(Отгрузка!$P:$P,Отгрузка!$B:$B,$C$1,Отгрузка!$N:$N,$A9)=0,\"\",SUMIFS(Отгрузка!$P:$P,Отгрузка!$B:$B,$C$1,Отгрузка!$N:$N,$A9))","v":""},{"$f":"IF(SUMIFS(Отгрузка!$P:$P,Отгрузка!$B:$B,$C$1,Отгрузка!$N:$N,$A9)=0,\"\",SUMIFS(Отгрузка!$P:$P,Отгрузка!$B:$B,$C$1,Отгрузка!$N:$N,$A9))","v":""},{"$f":"IF(SUMIFS(Отгрузка!$P:$P,Отгрузка!$B:$B,$C$1,Отгрузка!$N:$N,$A9)=0,\"\",SUMIFS(Отгрузка!$P:$P,Отгрузка!$B:$B,$C$1,Отгрузка!$N:$N,$A9))","v":""},{"$f":"IF(SUMIFS(Отгрузка!$P:$P,Отгрузка!$B:$B,$C$1,Отгрузка!$N:$N,$A9)=0,\"\",SUMIFS(Отгрузка!$P:$P,Отгрузка!$B:$B,$C$1,Отгрузка!$N:$N,$A9))","v":""},{"$f":"IF(SUMIFS(Отгрузка!$P:$P,Отгрузка!$B:$B,$C$1,Отгрузка!$N:$N,$A9)=0,\"\",SUMIFS(Отгрузка!$P:$P,Отгрузка!$B:$B,$C$1,Отгрузка!$N:$N,$A9))","v":""},{"$f":"IF(SUMIFS(Отгрузка!$P:$P,Отгрузка!$B:$B,$C$1,Отгрузка!$N:$N,$A9)=0,\"\",SUMIFS(Отгрузка!$P:$P,Отгрузка!$B:$B,$C$1,Отгрузка!$N:$N,$A9))","v":""},{"$f":"IF(SUMIFS(Отгрузка!$P:$P,Отгрузка!$B:$B,$C$1,Отгрузка!$N:$N,$A9)=0,\"\",SUMIFS(Отгрузка!$P:$P,Отгрузка!$B:$B,$C$1,Отгрузка!$N:$N,$A9))","v":""},{"$f":"IF(SUMIFS(Отгрузка!$P:$P,Отгрузка!$B:$B,$C$1,Отгрузка!$N:$N,$A9)=0,\"\",SUMIFS(Отгрузка!$P:$P,Отгрузка!$B:$B,$C$1,Отгрузка!$N:$N,$A9)*2)","v":""},0,0,null,null,{"$f":"IFERROR(HLOOKUP($C$1,Остаток!$A$1:$AS$7,MATCH($A9,Остаток!$A$1:$A$7,0),0),\"\")","v":""},null,null,null,null,null,""]
[null,null,{"$f":"IF(SUMIFS(Отгрузка!$P:$P,Отгрузка!$B:$B,$C$1,Отгрузка!$N:$N,$A10)=0,\"\",SUMIFS(Отгрузка!$P:$P,Отгрузка!$B:$B,$C$1,Отгрузка!$N:$N,$A10))","v":""},{"$f":"IF(SUMIFS(Отгрузка!$P:$P,Отгрузка!$B:$B,$C$1,Отгрузка!$N:$N,$A10)=0,\"\",SUMIFS(Отгрузка!$P:$P,Отгрузка!$B:$B,$C$1,Отгрузка!$N:$N,$A10))","v":""},{"$f":"IF(SUMIFS(Отгрузка!$P:$P,Отгрузка!$B:$B,$C$1,Отгрузка!$N:$N,$A10)=0,\"\",SUMIFS(Отгрузка!$P:$P,Отгрузка!$B:$B,$C$1,Отгрузка!$N:$N,$A10))","v":""},{"$f":"IF(SUMIFS(Отгрузка!$P:$P,Отгрузка!$B:$B,$C$1,Отгрузка!$N:$N,$A10)=0,\"\",SUMIFS(Отгрузка!$P:$P,Отгрузка!$B:$B,$C$1,Отгрузка!$N:$N,$A10))","v":""},{"$f":"IF(SUMIFS(Отгрузка!$P:$P,Отгрузка!$B:$B,$C$1,Отгрузка!$N:$N,$A10)=0,\"\",SUMIFS(Отгрузка!$P:$P,Отгрузка!$B:$B,$C$1,Отгрузка!$N:$N,$A10))","v":""},{"$f":"IF(SUMIFS(Отгрузка!$P:$P,Отгрузка!$B:$B,$C$1,Отгрузка!$N:$N,$A10)=0,\"\",SUMIFS(Отгрузка!$P:$P,Отгрузка!$B:$B,$C$1,Отгрузка!$N:$N,$A10))","v":""},{"$f":"IF(SUMIFS(Отгрузка!$P:$P,Отгрузка!$B:$B,$C$1,Отгрузка!$N:$N,$A10)=0,\"\",SUMIFS(Отгрузка!$P:$P,Отгрузка!$B:$B,$C$1,Отгрузка!$N:$N,$A10))","v":""},{"$f":"IF(SUMIFS(Отгрузка!$P:$P,Отгрузка!$B:$B,$C$1,Отгрузка!$N:$N,$A10)=0,\"\",SUMIFS(Отгрузка!$P:$P,Отгрузка!$B:$B,$C$1,Отгрузка!$N:$N,$A10))","v":""},{"$f":"IF(SUMIFS(Отгрузка!$P:$P,Отгрузка!$B:$B,$C$1,Отгрузка!$N:$N,$A10)=0,\"\",SUMIFS(Отгрузка!$P:$P,Отгрузка!$B:$B,$C$1,Отгрузка!$N:$N,$A10))","v":""},{"$f":"IF(SUMIFS(Отгрузка!$P:$P,Отгрузка!$B:$B,$C$1,Отгрузка!$N:$N,$A10)=0,\"\",SUMIFS(Отгрузка!$P:$P,Отгрузка!$B:$B,$C$1,Отгрузка!$N:$N,$A10))","v":""},{"$f":"IF(SUMIFS(Отгрузка!$P:$P,Отгрузка!$B:$B,$C$1,Отгрузка!$N:$N,$A10)=0,\"\",SUMIFS(Отгрузка!$P:$P,Отгрузка!$B:$B,$C$1,Отгрузка!$N:$N,$A10))","v":""},{"$f":"IF(SUMIFS(Отгрузка!$P:$P,Отгрузка!$B:$B,$C$1,Отгрузка!$N:$N,$A10)=0,\"\",SUMIFS(Отгрузка!$P:$P,Отгрузка!$B:$B,$C$1,Отгрузка!$N:$N,$A10)*2)","v":""},0,0,null,null,{"$f":"IFERROR(HLOOKUP($C$1,Остаток!$A$1:$AS$7,MATCH($A10,Остаток!$A$1:$A$7,0),0),\"\")","v":""},null,null,null,null,null,""]
[]
[]
[]
["КОД","НАИМЕНОВАНИЕ","ВСЕГО","БелЦерковь","Винница","Горловка","Днепр","ДнепроДз","Донецк","Житомир","Запорожье","ИвФранковск","Камянец-Подольский","Керчь","Кировоград","Краматорск","Кременчуг","КривойРог","Луганск","Луцк","Львов","Макеевка","Мариуполь","Мелитополь","Мукачево","Николаев","Никополь","Одесса","Павлоград","Полтава","Ровно","Севастополь","Северодонецк","Симферополь","Сумы","Тернополь","Ужгород","Умань","Харьков","Херсон","Хмельницкий","Черкассы","Чернигов","Черновцы","Сетевой"]
[{"$f":"A3:B10","v":0},0,{"$f":"SUM(D15:AS15)","v":0}]
[0,0,{"$f":"SUM(D16:AS16)","v":0}]
[0,0,0]
[0,0,0]
[0,0,0]
[0,0,0]
[0,0,0]
[0,0,0]
[{"$error":"#N/A"},{"$error":"#N/A"},0]
[{"$error":"#N/A"},{"$error":"#N/A"},0]
[{"$error":"#N/A"},{"$error":"#N/A"},0]
[{"$error":"#N/A"},{"$error":"#N/A"},0]
[{"$error":"#N/A"},{"$error":"#N/A"},0]
[{"$error":"#N/A"},{"$error":"#N/A"},0]
[{"$error":"#N/A"},{"$error":"#N/A"},0]
[{"$error":"#N/A"},{"$error":"#N/A"},0]
[{"$error":"#N/A"},{"$error":"#N/A"},0]
[{"$error":"#N/A"},{"$error":"#N/A"},0]
[{"$error":"#N/A"},{"$error":"#N/A"},0]
[{"$error":"#N/A"},{"$error":"#N/A"},0]
[{"$error":"#N/A"},{"$error":"#N/A"},0]
[{"$error":"#N/A"},{"$error":"#N/A"},0]
[{"$error":"#N/A"},{"$error":"#N/A"},0]
[{"$error":"#N/A"},{"$error":"#N/A"},0]
[{"$error":"#N/A"},{"$error":"#N/A"},0]
[{"$error":"#N/A"},{"$error":"#N/A"},0]
[{"$error":"#N/A"},{"$error":"#N/A"},0]
[{"$error":"#N/A"},{"$error":"#N/A"},0]
[{"$error":"#N/A"},{"$error":"#N/A"},0]
[{"$error":"#N/A"},{"$error":"#N/A"},0]
[{"$error":"#N/A"},{"$error":"#N/A"},0]
[{"$error":"#N/A"},{"$error":"#N/A"},0]
[{"$error":"#N/A"},{"$error":"#N/A"},0]
[{"$error":"#N/A"},{"$error":"#N/A"},0]
[{"$error":"#N/A"},{"$error":"#N/A"},0]
[{"$error":"#N/A"},{"$error":"#N/A"},0]
[{"$error":"#N/A"},{"$error":"#N/A"},0]
[{"$error":"#N/A"},{"$error":"#N/A"},0]
[{"$error":"#N/A"},{"$error":"#N/A"},0]
[{"$error":"#N/A"},{"$error":"#N/A"},0]
[{"$error":"#N/A"},{"$error":"#N/A"},0]
[{"$error":"#N/A"},{"$error":"#N/A"},0]
[{"$error":"#N/A"},{"$error":"#N/A"},0]
[{"$error":"#N/A"},{"$error":"#N/A"},0]
[{"$error":"#N/A"},{"$error":"#N/A"},0]
[{"$error":"#N/A"},{"$error":"#N/A"},0]
[{"$error":"#N/A"},{"$error":"#N/A"},0]
[{"$error":"#N/A"},{"$error":"#N/A"},0]
[{"$error":"#N/A"},{"$error":"#N/A"},0]
[{"$error":"#N/A"},{"$error":"#N/A"},0]
[{"$error":"#N/A"},{"$error":"#N/A"},0]
[{"$error":"#N/A"},{"$error":"#N/A"},0]
[{"$error":"#N/A"},{"$error":"#N/A"},0]
[{"$error":"#N/A"},{"$error":"#N/A"},0]
[{"$error":"#N/A"},{"$error":"#N/A"},0]
[{"$error":"#N/A"},{"$error":"#N/A"},0]
[{"$error":"#N/A"},{"$error":"#N/A"},0]
[{"$error":"#N/A"},{"$error":"#N/A"},0]
[{"$error":"#N/A"},{"$error":"#N/A"},0]
[{"$error":"#N/A"},{"$error":"#N/A"},0]
[{"$error":"#N/A"},{"$error":"#N/A"},0]
[{"$error":"#N/A"},{"$error":"#N/A"},0]
[{"$error":"#N/A"},{"$error":"#N/A"},0]
[{"$error":"#N/A"},{"$error":"#N/A"},0]
[{"$error":"#N/A"},{"$error":"#N/A"},0]
[{"$error":"#N/A"},{"$error":"#N/A"},{"$f":"SUM(D80:AS80)","v":0}]
[{"$error":"#N/A"},{"$error":"#N/A"},0]
[{"$error":"#N/A"},{"$error":"#N/A"},0]
[{"$error":"#N/A"},{"$error":"#N/A"},0]
[{"$error":"#N/A"},{"$error":"#N/A"},0]
[{"$error":"#N/A"},{"$error":"#N/A"},0]
[{"$error":"#N/A"},{"$error":"#N/A"},0]
[{"$error":"#N/A"},{"$error":"#N/A"},0]
[{"$error":"#N/A"},{"$error":"#N/A"},0]
[{"$error":"#N/A"},{"$error":"#N/A"},0]
[{"$error":"#N/A"},{"$error":"#N/A"},0]
[{"$error":"#N/A"},{"$error":"#N/A"},0]
[{"$error":"#N/A"},{"$error":"#N/A"},0]
[{"$error":"#N/A"},{"$error":"#N/A"},0]
[{"$error":"#N/A"},{"$error":"#N/A"},0]
[{"$error":"#N/A"},{"$error":"#N/A"},0]
[{"$error":"#N/A"},{"$error":"#N/A"},0]
[{"$error":"#N/A"},{"$error":"#N/A"},0]
[{"$error":"#N/A"},{"$error":"#N/A"},0]
[{"$error":"#N/A"},{"$error":"#N/A"},0]
[{"$error":"#N/A"},{"$error":"#N/A"},0]

{"sheet":"Остаток","index":1,"n_rows":0,"n_cols":0,"rows_kept":0,"cut":false,"hidden":false,"merged":[]}

{"sheet":"Отгрузка","index":2,"n_rows":0,"n_cols":0,"rows_kept":0,"cut":false,"hidden":false,"merged":[]}

{"sheet":"Region","index":3,"n_rows":42,"n_cols":1,"rows_kept":42,"cut":false,"hidden":false,"merged":[]}
["БелЦерковь"]
["Винница"]
["Горловка"]
["Днепр"]
["ДнепроДз"]
["Донецк"]
["Житомир"]
["Запорожье"]
["ИвФранковск"]
["Камянец-Подольский"]
["Керчь"]
["Кировоград"]
["Краматорск"]
["Кременчуг"]
["КривойРог"]
["Луганск"]
["Луцк"]
["Львов"]
["Макеевка"]
["Мариуполь"]
["Мелитополь"]
["Мукачево"]
["Николаев"]
["Никополь"]
["Одесса"]
["Павлоград"]
["Полтава"]
["Ровно"]
["Севастополь"]
["Северодонецк"]
["Симферополь"]
["Сумы"]
["Тернополь"]
["Ужгород"]
["Умань"]
["Харьков"]
["Херсон"]
["Хмельницкий"]
["Черкассы"]
["Чернигов"]
["Черновцы"]
["Сетевой"]